bitfinex/quotes_BTCUSD_20220109
["timestamp","ask_amount","ask_price","bid_price","bid_amount"]
[1641709845823,0.71767,41803.0,41802.0,0.90624309]
[1641709846422,0.70767,41803.0,41802.0,0.90624309]
[1641709846664,0.70767,41803.0,41802.0,0.89624309]
[1641709847465,0.70767,41803.0,41802.0,0.91424309]
[1641709848465,0.70767,41803.0,41802.0,0.76424309]
[1641709848666,0.70767,41803.0,41802.0,0.74624309]
[1641709849266,0.70767,41803.0,41802.0,0.76424309]
[1641709850067,0.70767,41803.0,41802.0,0.91424309]
[1641709850617,0.70767,41803.0,41802.0,0.89624309]
[1641709850815,0.70767,41803.0,41802.0,0.84624309]
[1641709851018,0.70267,41803.0,41802.0,0.74624309]
[1641709851416,0.70267,41803.0,41802.0,0.76424309]
[1641709852516,0.70267,41803.0,41802.0,0.74624309]
[1641709853318,0.70267,41803.0,41802.0,0.76424309]
[1641709854465,0.70267,41803.0,41802.0,0.74624309]
[1641709855366,0.70267,41803.0,41802.0,0.76424309]
[1641709856666,0.70267,41803.0,41802.0,0.74624309]
[1641709857465,0.70267,41803.0,41802.0,0.76424309]
[1641709858514,0.70267,41803.0,41802.0,0.74624309]
[1641709859315,0.70267,41803.0,41802.0,0.76424309]
[1641709860417,0.70267,41803.0,41802.0,0.91424309]
[1641709860616,0.70267,41803.0,41802.0,0.89624309]
[1641709861415,0.70267,41803.0,41802.0,0.91424309]
[1641709862671,0.70267,41803.0,41802.0,0.89624309]
[1641709863375,0.70267,41803.0,41802.0,0.91424309]
[1641709864572,0.70267,41803.0,41802.0,0.89624309]
[1641709865454,0.70267,41803.0,41802.0,0.91424309]
[1641709865856,0.70267,41803.0,41802.0,0.81424309]
[1641709866058,0.70267,41803.0,41802.0,0.91424309]
[1641709866758,0.70267,41803.0,41802.0,0.89624309]
[1641709867359,0.70267,41803.0,41802.0,0.91424309]
[1641709868659,0.70267,41803.0,41802.0,0.89624309]
[1641709869267,0.70267,41803.0,41802.0,0.535209]
[1641709869467,0.70267,41803.0,41802.0,0.91697397]
[1641709870566,0.70267,41803.0,41802.0,0.535209]
[1641709871367,0.70267,41803.0,41802.0,0.553209]
[1641709872820,0.70267,41803.0,41802.0,0.535209]
[1641709873021,0.70267,41803.0,41802.0,0.15]
[1641709873422,0.70267,41803.0,41802.0,0.067]
[1641709874619,0.70267,41803.0,41802.0,0.05]
[1641709875423,0.70267,41803.0,41802.0,0.067]
[1641709876673,0.70267,41803.0,41802.0,0.05]
[1641709877373,0.70267,41803.0,41802.0,0.067]
[1641709878573,0.70267,41803.0,41802.0,0.05]
[1641709879476,0.70267,41803.0,41802.0,0.064]
[1641709880721,0.70267,41803.0,41802.0,0.05]
[1641709881327,0.76397,41803.0,41801.0,0.11963232]
[1641709881526,0.76397,41803.0,41802.0,0.016]
[1641709882722,0.76397,41803.0,41800.0,7.946e-05]
[1641709883322,0.41114845,41801.0,41800.0,7.946e-05]
[1641709883523,0.41114845,41801.0,41800.0,0.03507946]
[1641709884669,0.41114845,41801.0,41800.0,7.946e-05]
[1641709885369,0.41114845,41801.0,41800.0,0.01207946]
[1641709886373,0.38614845,41801.0,41800.0,0.01207946]
[1641709886673,0.38614845,41801.0,41800.0,7.946e-05]
[1641709887370,0.38614845,41801.0,41800.0,0.01107946]
[1641709887842,0.38114845,41801.0,41800.0,0.01107946]
[1641709888744,0.38114845,41801.0,41800.0,7.946e-05]
[1641709889542,0.38114845,41801.0,41800.0,0.01107946]
[1641709890750,0.38114845,41801.0,41800.0,7.946e-05]
[1641709891445,0.38114845,41801.0,41800.0,0.01107946]
[1641709892576,0.38114845,41801.0,41800.0,7.946e-05]
[1641709893578,0.38114845,41801.0,41800.0,0.00907946]
[1641709894677,0.38114845,41801.0,41800.0,7.946e-05]
[1641709895421,0.38114845,41801.0,41800.0,0.00907946]
[1641709896724,0.38114845,41801.0,41800.0,7.946e-05]
[1641709897525,0.38114845,41801.0,41800.0,0.00907946]
[1641709898824,0.38114845,41801.0,41800.0,7.946e-05]
[1641709899270,1.08381845,41801.0,41800.0,7.946e-05]
[1641709899573,1.08381845,41801.0,41800.0,0.00907946]
[1641709900672,1.08381845,41801.0,41800.0,7.946e-05]
[1641709901074,0.05990046,41798.0,41796.0,0.179463]
[1641709901274,0.10487024,41796.0,41791.0,0.18737368]
[1641709901473,0.18981024,41796.0,41786.0,0.03668137]
[1641709901674,0.75047,41795.0,41786.0,0.03668137]
[1641709901872,0.1,41793.0,41786.0,0.03668137]
[1641709902076,0.30575992,41787.0,41786.0,0.03668137]
[1641709902272,0.43047992,41787.0,41786.0,0.03668137]
[1641709903420,0.8468287,41787.0,41786.0,0.07668137]
[1641709904822,0.8468287,41787.0,41786.0,0.03668137]
[1641709905422,0.8468287,41787.0,41786.0,0.03707536]
[1641709905623,0.43047992,41787.0,41786.0,0.07907536]
[1641709906227,0.43047992,41787.0,41786.0,0.04239399]
[1641709906674,0.37062992,41787.0,41786.0,0.04239399]
[1641709906973,0.30575992,41787.0,41786.0,0.00039399]
[1641709907574,0.30575992,41787.0,41786.0,0.01039399]
[1641709908778,0.30575992,41787.0,41786.0,0.00039399]
[1641709909777,0.30575992,41787.0,41786.0,0.00077086]
[1641709909977,0.30575992,41787.0,41786.0,0.00037687]
[1641709912037,0.72314303,41787.0,41786.0,0.00037687]
[1641709912231,0.84285003,41787.0,41786.0,0.00037687]
[1641709912637,0.42546692,41787.0,41786.0,0.00037687]
[1641709912834,0.92453169,41787.0,41786.0,0.00037687]
[1641709913033,1.62720169,41787.0,41786.0,0.00037761]
[1641709913432,1.52720169,41787.0,41786.0,0.00037761]
[1641709913634,1.17720169,41787.0,41786.0,0.00037761]
[1641709913833,1.11608292,41787.0,41786.0,0.00037761]
[1641709914071,1.11608292,41787.0,41786.0,0.00075522]
[1641709914371,1.11608292,41787.0,41786.0,0.00037761]
[1641709914976,1.55408561,41787.0,41786.0,0.00037761]
[1641709915672,1.55408561,41787.0,41786.0,0.00437761]
[1641709916674,1.55408561,41787.0,41786.0,0.00037761]
[1641709916876,1.49423261,41787.0,41786.0,0.00037761]
[1641709917277,0.75047,41787.0,41786.0,0.00037761]
[1641709917478,0.75047,41787.0,41786.0,0.00437757]
[1641709918133,1.16447471,41787.0,41786.0,0.00437757]
[1641709918334,1.50512926,41787.0,41786.0,0.00437757]
[1641709918734,1.50512926,41787.0,41786.0,0.00037757]
[1641709921776,1.50512926,41787.0,41786.0,0.00037758]
[1641709923380,1.09112455,41787.0,41786.0,0.00037758]
[1641709923581,1.15312455,41787.0,41786.0,0.00037758]
[1641709924881,1.09112455,41787.0,41786.0,0.00037758]
[1641709925334,1.50254186,41787.0,41786.0,0.00037758]
[1641709925534,1.09112455,41787.0,41786.0,0.00437758]
[1641709926333,1.50441186,41787.0,41786.0,0.00437758]
[1641709926733,1.09112455,41787.0,41786.0,0.00037758]
[1641709927535,1.09112455,41787.0,41786.0,0.00437758]
[1641709928740,1.09112455,41787.0,41786.0,0.00037758]
[1641709929578,1.09112455,41787.0,41786.0,0.00437758]
[1641709930778,1.09112455,41787.0,41786.0,0.00037758]
[1641709931578,1.09112455,41787.0,41786.0,0.00437758]
[1641709932825,1.04112455,41787.0,41786.0,0.00037758]
[1641709933626,1.04112455,41787.0,41786.0,0.00437758]
[1641709933825,1.04112455,41787.0,41786.0,0.00475516]
[1641709934027,1.46567834,41787.0,41786.0,0.00437758]
[1641709934627,1.04112455,41787.0,41786.0,0.00437758]
[1641709935425,0.94112455,41787.0,41786.0,0.00437758]
[1641709936572,1.3673357,41787.0,41786.0,0.00437758]
[1641709937574,1.3673357,41787.0,41786.0,0.00037758]
[1641709942128,0.94112455,41787.0,41786.0,0.00037758]
[1641709944883,0.94112455,41787.0,41786.0,0.00075516]
[1641709945082,0.94112455,41787.0,41786.0,0.00037758]
[1641709947085,0.94112455,41787.0,41786.0,0.00075516]
[1641709947286,0.94112455,41787.0,41786.0,0.00037758]
[1641709948729,1.37720376,41787.0,41786.0,0.00037758]
[1641709948929,1.37993511,41787.0,41786.0,0.00037758]
[1641709949130,0.94112455,41787.0,41786.0,0.00037758]
[1641709950430,0.94112455,41787.0,41786.0,0.00075516]
[1641709950632,0.94112455,41787.0,41786.0,0.00037758]
[1641709952578,0.94112455,41787.0,41786.0,0.00075516]
[1641709952779,0.94112455,41787.0,41786.0,0.00037758]
[1641709953579,0.94112455,41787.0,41786.0,0.00337758]
[1641709954882,0.94112455,41787.0,41786.0,0.00037758]
[1641709955733,0.94112455,41787.0,41786.0,0.00337758]
[1641709956932,0.94112455,41787.0,41786.0,0.00037758]
[1641709957733,0.94112455,41787.0,41786.0,0.00337758]
[1641709958935,0.94112455,41787.0,41786.0,0.00037758]
[1641709959577,0.94112455,41787.0,41786.0,0.00437758]
[1641709960776,0.94112455,41787.0,41786.0,0.00037758]
[1641709961582,0.94112455,41787.0,41786.0,0.00437758]
[1641709962480,0.94112455,41787.0,41786.0,0.00475516]
[1641709962679,0.94112455,41787.0,41786.0,0.00437758]
[1641709962929,0.94112455,41787.0,41786.0,0.00037758]
[1641709963629,0.94112455,41787.0,41786.0,0.00337758]
[1641709964832,0.94112455,41787.0,41786.0,0.00037758]
[1641709965633,1.36451282,41787.0,41786.0,0.00337758]
[1641709966880,1.36451282,41787.0,41786.0,0.00075516]
[1641709967078,1.36451282,41787.0,41786.0,0.00037758]
[1641709967679,1.39651282,41787.0,41786.0,0.00237758]
[1641709968878,1.36451282,41787.0,41786.0,0.00037758]
[1641709969581,1.38451282,41787.0,41786.0,0.00037758]
[1641709970181,1.38451282,41787.0,41786.0,0.00075516]
[1641709970432,1.38451282,41787.0,41786.0,0.00037758]
[1641709970834,1.36451282,41787.0,41786.0,0.00037758]
[1641709971633,1.38451282,41787.0,41786.0,0.00037758]
[1641709972935,1.36451282,41787.0,41786.0,0.00037758]
[1641709973738,1.38451282,41787.0,41786.0,0.00037758]
[1641709975082,1.36451282,41787.0,41786.0,0.00037758]
[1641709975679,1.38351282,41787.0,41786.0,0.00037758]
[1641709976480,0.96012455,41787.0,41786.0,0.00037758]
[1641709976882,0.94112455,41787.0,41786.0,0.00075516]
[1641709977080,0.94112455,41787.0,41786.0,0.00037758]
[1641709977284,0.60047,41787.0,41786.0,0.00037758]
[1641709977682,0.60047,41787.0,41786.0,0.00437758]
[1641709977934,0.60047,41787.0,41786.0,0.00475516]
[1641709978138,0.60047,41787.0,41786.0,0.00437758]
[1641709978937,0.60047,41787.0,41786.0,0.00160517]
[1641709978938,0.04447,41787.0,41786.0,0.00160517]
[1641709979137,0.00717819,41793.0,41791.0,0.00127703]
[1641709979336,0.00717819,41793.0,41792.0,0.385209]
[1641709979535,0.00717819,41793.0,41791.0,0.00127703]
[1641709979735,0.00717819,41793.0,41791.0,0.01227703]
[1641709979736,0.71784,41792.0,41791.0,0.01227703]
[1641709980136,0.71784,41792.0,41791.0,0.0126545]
[1641709980534,0.71784,41792.0,41791.0,0.01137747]
[1641709980935,0.71784,41792.0,41791.0,0.00037747]
[1641709981339,0.71784,41792.0,41791.0,0.00037748]
[1641709981580,0.71784,41792.0,41791.0,0.00837748]
[1641709981781,0.73884,41792.0,41791.0,0.00837748]
[1641709982883,0.71784,41792.0,41791.0,0.00037748]
[1641709983082,0.71784,41792.0,41791.0,0.00030475]
[1641709983483,0.71784,41792.0,41791.0,0.00037748]
[1641709983683,0.75384,41792.0,41791.0,0.00737748]
[1641709984683,0.75384,41792.0,41791.0,0.007]
[1641709984884,0.71784,41792.0,41790.0,0.11967527]
[1641709985331,0.71784,41792.0,41790.0,0.17951227]
[1641709985532,0.71784,41792.0,41787.0,0.00164302]
[1641709985735,0.71784,41792.0,41790.0,0.011]
[1641709986632,0.71784,41792.0,41790.0,0.07083799]
[1641709986931,0.71784,41792.0,41790.0,0.05983799]
[1641709987736,0.71784,41792.0,41790.0,0.07083799]
[1641709987931,0.71784,41792.0,41790.0,0.25034599]
[1641709988932,0.71784,41792.0,41790.0,0.23934599]
[1641709989589,0.71784,41792.0,41791.0,0.35576459]
[1641709989988,0.71784,41792.0,41791.0,0.45576459]
[1641709990789,0.71784,41792.0,41791.0,0.35576459]
[1641709991092,0.71784,41792.0,41791.0,0.35697826]
[1641709991292,0.71784,41792.0,41791.0,0.84218726]
[1641709991495,0.71784,41792.0,41791.0,0.94218726]
[1641709991692,0.71784,41792.0,41791.0,0.95418726]
[1641709991892,0.71784,41792.0,41791.0,1.45418726]
[1641709992192,0.71784,41792.0,41791.0,2.21248187]
[1641709992829,0.44217982,41792.0,41791.0,2.21248187]
[1641709993031,0.44217982,41792.0,41791.0,1.70048187]
[1641709993629,0.44217982,41792.0,41791.0,1.72448187]
[1641709994433,0.44217982,41792.0,41791.0,2.99248187]
[1641709994832,0.44217982,41792.0,41791.0,2.96848187]
[1641709995232,0.44897454,41792.0,41791.0,2.96848187]
[1641709995735,0.10487024,41796.0,41795.0,0.0012946]
[1641709995933,0.10487024,41796.0,41795.0,0.53430359]
[1641709996134,0.10487024,41796.0,41795.0,1.15905508]
[1641709996583,0.10487024,41796.0,41795.0,1.20905508]
[1641709997884,0.10487024,41796.0,41795.0,1.23605508]
[1641709998885,0.05990046,41798.0,41796.0,0.34631135]
[1641709999085,0.05990046,41798.0,41797.0,1.00491679]
[1641709999483,0.05990046,41798.0,41797.0,1.10491679]
[1641709999783,0.05990046,41798.0,41797.0,1.12891679]
[1641710000537,0.05990046,41798.0,41797.0,2.39691679]
[1641710000936,0.05990046,41798.0,41797.0,2.37291679]
[1641710001633,0.00043617,41800.0,41799.0,0.86100792]
[1641710001833,0.00043617,41800.0,41799.0,1.87074115]
[1641710002034,0.00032002,41808.0,41804.0,0.00123041]
[1641710002234,0.00032002,41808.0,41805.0,0.385209]
[1641710002433,0.00032002,41808.0,41805.0,0.8224359]
[1641710002633,0.00032002,41808.0,41805.0,0.9224359]
[1641710003634,0.00011001,41806.0,41805.0,0.9224359]
[1641710003834,0.00011001,41806.0,41805.0,0.9424359]
[1641710004481,0.00011001,41806.0,41805.0,0.9902359]
[1641710004682,0.00031004,41808.0,41805.0,1.04152091]
[1641710004883,0.00031004,41808.0,41807.0,0.48520899]
[1641710005082,0.00031004,41808.0,41807.0,1.00808771]
[1641710005284,0.00031004,41808.0,41807.0,1.05588771]
[1641710005482,0.00075485,41808.0,41807.0,1.05588771]
[1641710005682,0.00075485,41808.0,41807.0,1.07888771]
[1641710005882,0.00065482,41808.0,41807.0,1.07888771]
[1641710006086,0.00065482,41808.0,41807.0,1.08016535]
[1641710006282,0.00065482,41808.0,41807.0,1.13016535]
[1641710006685,0.00065482,41808.0,41807.0,0.60728664]
[1641710006884,0.00065482,41808.0,41807.0,0.53648664]
[1641710007084,0.00065482,41808.0,41807.0,0.535209]
[1641710007686,0.00065482,41808.0,41807.0,0.559209]
[1641710007944,0.00065482,41808.0,41807.0,0.98334333]
[1641710008944,0.00065482,41808.0,41807.0,0.95934333]
[1641710009743,0.00065482,41808.0,41807.0,0.98134333]
[1641710009943,0.00064491,41808.0,41807.0,0.55846461]
[1641710010145,0.00064491,41808.0,41807.0,0.97235092]
[1641710010945,0.00064491,41808.0,41807.0,0.95035092]
[1641710011782,0.00064491,41808.0,41807.0,0.97435092]
[1641710012184,0.00064491,41808.0,41807.0,1.07435091]
[1641710012383,0.00064491,41808.0,41807.0,0.97435092]
[1641710012983,0.00064491,41808.0,41807.0,0.95035092]
[1641710013683,0.00064491,41808.0,41807.0,0.97335092]
[1641710013886,0.00400492,41809.0,41808.0,1.05]
[1641710014085,0.00389492,41809.0,41808.0,1.14945704]
[1641710014285,0.00011001,41813.0,41811.0,0.38648592]
[1641710014486,0.00011001,41813.0,41812.0,0.483009]
[1641710014883,0.00011001,41813.0,41812.0,0.583009]
[1641710015734,0.00011001,41813.0,41812.0,0.645009]
[1641710016136,0.00101602,41815.0,41812.0,1.16909839]
[1641710016137,0.00090601,41815.0,41812.0,1.16909839]
[1641710016339,0.0001,41818.0,41816.0,0.00126713]
[1641710016539,0.0001,41818.0,41817.0,0.433009]
[1641710016736,0.0001,41818.0,41817.0,0.93726378]
[1641710017038,0.0008042,41822.0,41817.0,1.03726378]
[1641710017237,0.0008042,41822.0,41818.0,0.84302991]
[1641710017440,0.0008042,41822.0,41818.0,0.89082991]
[1641710017638,0.0008042,41822.0,41818.0,0.99082991]
[1641710017938,0.0008042,41822.0,41818.0,1.01282991]
[1641710018638,0.00422,41819.0,41818.0,1.51282991]
[1641710018837,0.0008042,41822.0,41818.0,1.51282991]
[1641710019084,0.0008042,41822.0,41819.0,0.85699053]
[1641710019485,0.0008042,41822.0,41819.0,2.44452952]
[1641710019685,0.0008042,41822.0,41821.0,0.385209]
[1641710019889,0.0008042,41822.0,41821.0,0.83430967]
[1641710020086,0.0008042,41822.0,41821.0,0.93430967]
[1641710020488,0.0007042,41822.0,41821.0,2.25010967]
[1641710020688,0.0007042,41822.0,41821.0,2.25140351]
[1641710020889,0.0001,41825.0,41822.0,1.435209]
[1641710021092,0.0001,41825.0,41823.0,1.0565367]
[1641710021493,0.00041001,41830.0,41827.0,0.25640339]
[1641710021692,0.00041001,41830.0,41827.0,1.11503752]
[1641710021889,0.00041001,41830.0,41827.0,1.17479852]
[1641710022090,0.00041001,41830.0,41827.0,1.27479852]
[1641710022291,0.00044372,41828.0,41827.0,1.69278055]
[1641710022691,0.00044372,41828.0,41827.0,1.63302263]
[1641710022934,0.00044372,41828.0,41827.0,1.37661924]
[1641710023334,0.00043383,41828.0,41827.0,1.37661924]
[1641710023535,0.00043383,41828.0,41827.0,1.01839513]
[1641710023834,0.00043383,41828.0,41827.0,1.38544412]
[1641710024238,0.00043383,41828.0,41827.0,1.04239513]
[1641710025135,0.00043383,41828.0,41827.0,1.01839513]
[1641710025737,0.00043383,41828.0,41827.0,1.04639513]
[1641710026591,0.00086766,41828.0,41827.0,1.04639513]
[1641710026794,0.00043383,41828.0,41827.0,1.04639513]
[1641710026990,0.00043383,41828.0,41827.0,0.59277]
[1641710027390,0.00043383,41828.0,41827.0,0.54497]
[1641710027591,0.00043383,41828.0,41827.0,0.485209]
[1641710027793,0.00043405,41828.0,41827.0,0.509209]
[1641710027990,0.00043405,41828.0,41827.0,0.124]
[1641710027991,0.08353405,41828.0,41827.0,0.124]
[1641710028192,0.5153129,41828.0,41827.0,0.024]
[1641710028392,0.68353405,41828.0,41827.0,0.024]
[1641710028991,0.68353405,41828.0,41823.0,0.25224205]
[1641710029193,0.08353405,41828.0,41823.0,0.25224205]
[1641710029394,0.08353405,41828.0,41824.0,0.059784]
[1641710029593,0.00043405,41828.0,41824.0,0.059784]
[1641710029994,0.00043405,41827.0,41824.0,0.059784]
[1641710030637,0.00043405,41827.0,41825.0,0.059783]
[1641710031042,0.00043405,41827.0,41826.0,0.11955954]
[1641710031239,0.0041,41829.0,41826.0,0.10978054]
[1641710031438,0.0041,41829.0,41826.0,0.1]
[1641710031841,0.0041,41829.0,41826.0,0.12]
[1641710032240,0.00043513,41828.0,41827.0,0.44498707]
[1641710032440,0.00043513,41828.0,41827.0,0.385209]
[1641710032643,0.00043513,41828.0,41827.0,0.1]
[1641710033142,0.00043513,41828.0,41826.0,0.1]
[1641710033343,0.00043513,41828.0,41822.0,0.00126184]
[1641710033743,0.00043513,41828.0,41826.0,0.032]
[1641710034983,0.00043513,41828.0,41823.0,0.05]
[1641710035385,0.00043513,41828.0,41823.0,0.109785]
[1641710035785,0.00043513,41826.0,41823.0,0.132785]
[1641710035989,0.00043513,41826.0,41824.0,0.385209]
[1641710036587,0.00043513,41826.0,41824.0,0.544994]
[1641710036787,0.00043402,41826.0,41824.0,0.544994]
[1641710037690,0.00043402,41826.0,41824.0,0.563994]
[1641710037935,0.00043402,41826.0,41824.0,0.62377801]
[1641710038136,0.00043402,41826.0,41825.0,0.35688848]
[1641710038337,0.00043402,41826.0,41825.0,0.74209748]
[1641710038540,0.00043402,41826.0,41825.0,0.84209748]
[1641710039238,0.00043402,41826.0,41825.0,0.485209]
[1641710039839,0.00043402,41826.0,41825.0,0.504209]
[1641710040237,0.00043405,41826.0,41825.0,0.504209]
[1641710040738,0.00043405,41826.0,41825.0,0.86208149]
[1641710041042,0.00043405,41826.0,41825.0,0.84308149]
[1641710041889,0.00043405,41826.0,41825.0,0.86508149]
[1641710042492,0.00043405,41826.0,41825.0,0.507209]
[1641710042889,0.00375405,41829.0,41826.0,0.385209]
[1641710043089,0.00375405,41829.0,41826.0,0.1]
[1641710043293,0.00031001,41831.0,41826.0,0.1]
[1641710043591,0.00788408,41832.0,41824.0,0.35597102]
[1641710043791,0.002,41829.0,41826.0,0.025]
[1641710044593,0.00119,41829.0,41826.0,0.025]
[1641710044993,0.00044261,41831.0,41825.0,0.059785]
[1641710045632,0.00043275,41831.0,41825.0,0.059785]
[1641710045833,0.00043275,41831.0,41825.0,0.087785]
[1641710046734,0.00043275,41831.0,41825.0,0.028]
[1641710047134,0.00043275,41831.0,41823.0,0.15]
[1641710047335,0.00043275,41831.0,41824.0,0.35789338]
[1641710047736,0.00043275,41831.0,41823.0,0.174]
[1641710048034,0.00043274,41831.0,41823.0,0.074]
[1641710048234,0.00043274,41831.0,41824.0,0.35533144]
[1641710049088,0.00043274,41831.0,41823.0,0.05]
[1641710049888,0.00043274,41831.0,41823.0,0.074]
[1641710050093,0.00043296,41831.0,41823.0,0.074]
[1641710050296,0.00043296,41831.0,41829.0,0.33480405]
[1641710050495,0.00043296,41831.0,41830.0,0.42287872]
[1641710050693,0.00043296,41831.0,41830.0,0.385209]
[1641710050891,0.00043296,41831.0,41830.0,0.48648401]
[1641710051291,0.00043299,41831.0,41830.0,0.48648401]
[1641710051892,0.00043299,41831.0,41830.0,0.50048401]
[1641710052942,0.00043299,41831.0,41830.0,0.53648401]
[1641710053340,0.00086598,41831.0,41830.0,0.53648401]
[1641710053542,0.00043299,41831.0,41830.0,0.53648401]
[1641710053743,0.00043299,41831.0,41830.0,0.55348401]
[1641710054544,0.00043298,41831.0,41830.0,0.60128401]
[1641710054742,0.00043298,41831.0,41830.0,1.02827443]
[1641710055142,0.00043298,41831.0,41830.0,1.01127443]
[1641710055844,0.00043298,41831.0,41830.0,1.03227443]
[1641710057087,0.00043298,41831.0,41830.0,1.01127443]
[1641710057891,0.00043298,41831.0,41830.0,1.03127443]
[1641710059592,0.00885793,41833.0,41832.0,1.085209]
[1641710059793,0.0001,41836.0,41834.0,0.38644961]
[1641710060196,0.0001,41836.0,41834.0,0.53644961]
[1641710060639,0.0001,41836.0,41834.0,0.87793403]
[1641710060841,0.0001,41836.0,41835.0,0.444959]
[1641710061139,0.0001,41836.0,41835.0,0.544959]
[1641710061742,0.0001,41836.0,41835.0,0.96118694]
[1641710061940,0.0001,41836.0,41835.0,0.98418694]
[1641710063045,0.0001,41836.0,41835.0,0.96118694]
[1641710063644,0.0001,41836.0,41835.0,0.544959]
[1641710063846,0.0001,41836.0,41835.0,0.567959]
[1641710064095,0.0001,41836.0,41835.0,0.93292172]
[1641710064395,0.00054156,41836.0,41835.0,0.93292172]
[1641710065094,0.00054156,41836.0,41835.0,0.90992172]
[1641710065496,0.00053171,41836.0,41835.0,0.90992172]
[1641710065897,0.00053171,41836.0,41835.0,0.93392172]
[1641710067099,0.00053171,41836.0,41835.0,0.90992172]
[1641710067950,0.00053171,41836.0,41835.0,0.93292172]
[1641710068749,0.00096342,41836.0,41835.0,0.93292172]
[1641710068949,0.00053171,41836.0,41835.0,0.93292172]
[1641710069150,0.00053171,41836.0,41835.0,0.95772172]
[1641710069951,0.00053193,41836.0,41835.0,0.97972172]
[1641710071052,0.00053193,41836.0,41835.0,0.95772172]
[1641710071891,0.00053193,41836.0,41835.0,0.97772172]
[1641710073093,0.00053193,41836.0,41835.0,0.95772172]
[1641710073395,0.00021001,41837.0,41835.0,0.95772172]
[1641710073592,0.0042,41839.0,41837.0,0.385209]
[1641710073793,0.0042,41839.0,41838.0,0.78009919]
[1641710074092,0.0042,41839.0,41838.0,0.88009919]
[1641710074292,0.0042,41839.0,41838.0,0.93009919]
[1641710074493,0.000796,41840.0,41838.0,0.93009919]
[1641710074692,0.00041602,41840.0,41839.0,0.397613]
[1641710074892,0.00041602,41840.0,41839.0,0.892575]
[1641710075093,0.00041602,41840.0,41839.0,1.05232407]
[1641710075343,0.00041602,41840.0,41839.0,1.10232407]
[1641710075843,0.00041602,41840.0,41839.0,1.11932407]
[1641710077144,0.00041602,41840.0,41839.0,0.70471107]
[1641710077946,0.00041602,41840.0,41839.0,0.71971107]
[1641710078451,0.00041602,41840.0,41839.0,1.10336607]
[1641710080093,0.00041602,41840.0,41839.0,0.71971107]
[1641710080493,0.00041602,41840.0,41839.0,0.88144214]
[1641710080991,0.00041602,41840.0,41839.0,0.51971107]
[1641710081194,0.00041602,41840.0,41839.0,0.50471107]
[1641710081692,0.00041602,41840.0,41839.0,0.85921803]
[1641710081895,0.00041602,41840.0,41839.0,0.87621803]
[1641710082093,0.00041602,41840.0,41839.0,1.07621803]
[1641710083742,0.00041602,41840.0,41839.0,1.05921803]
[1641710083940,0.00041602,41840.0,41839.0,1.07421803]
[1641710085142,0.00041602,41840.0,41839.0,1.05921803]
[1641710085943,0.00041602,41840.0,41839.0,1.07621803]
[1641710087092,0.00041602,41840.0,41839.0,1.05921803]
[1641710087994,0.00041602,41840.0,41839.0,1.07621803]
[1641710089094,0.00041602,41840.0,41839.0,1.05921803]
[1641710089494,0.00041602,41840.0,41839.0,1.05421803]
[1641710089994,0.00041602,41840.0,41839.0,1.07121803]
[1641710090195,0.00041602,41840.0,41839.0,0.71671107]
[1641710091145,0.00041602,41840.0,41839.0,0.69971107]
[1641710091546,0.00041602,41840.0,41839.0,1.05919489]
[1641710091946,0.00041602,41840.0,41839.0,1.07719489]
[1641710093147,0.00041602,41840.0,41839.0,1.05919489]
[1641710093949,0.00041602,41840.0,41839.0,1.07619489]
[1641710095191,0.00041602,41840.0,41839.0,1.05919489]
[1641710095992,0.00041602,41840.0,41839.0,1.07519489]
[1641710097194,0.00041602,41840.0,41839.0,1.05919489]
[1641710097944,0.00041602,41840.0,41839.0,1.07519489]
[1641710098742,5.689e-05,41841.0,41839.0,1.21519489]
[1641710098946,0.00740833,41845.0,41843.0,0.386629]
[1641710099144,0.00740833,41845.0,41844.0,0.85588772]
[1641710099446,0.00740833,41845.0,41844.0,0.86166293]
[1641710099743,0.00719832,41845.0,41844.0,0.96166293]
[1641710099941,0.00719832,41845.0,41844.0,1.58698179]
[1641710100249,0.0001,41845.0,41844.0,2.04158934]
[1641710100744,0.0002,41846.0,41844.0,2.10133034]
[1641710100943,0.0002,41846.0,41845.0,0.385209]
[1641710101143,0.0002,41846.0,41845.0,0.96828585]
[1641710102004,0.0002,41846.0,41845.0,0.98728585]
[1641710103200,0.0002,41846.0,41845.0,0.96828585]
[1641710103403,0.0002,41846.0,41845.0,0.86828585]
[1641710103602,0.0006394,41846.0,41845.0,0.86828585]
[1641710104001,0.0006394,41846.0,41845.0,0.88428585]
[1641710104604,0.0006394,41846.0,41845.0,1.03428585]
[1641710105950,0.0006394,41846.0,41845.0,1.05028585]
[1641710106751,0.00024304,41847.0,41845.0,1.05028585]
[1641710107055,0.0004394,41846.0,41845.0,0.98188922]
[1641710107253,0.0004394,41846.0,41845.0,0.9657648]
[1641710108054,0.00024304,41847.0,41845.0,0.9817648]
[1641710108253,0.00024304,41847.0,41845.0,0.8317648]
[1641710108559,0.00024304,41847.0,41845.0,0.401209]
[1641710108755,0.00024304,41847.0,41845.0,0.016]
[1641710109199,0.00024304,41847.0,41844.0,0.23896201]
[1641710109601,0.33259286,41845.0,41844.0,0.23896201]
[1641710109799,0.33259286,41845.0,41844.0,0.05974001]
[1641710109998,0.33259286,41845.0,41844.0,0.07874001]
[1641710110402,0.00424304,41847.0,41844.0,0.07874001]
[1641710110902,0.00424304,41847.0,41845.0,0.059758]
[1641710111303,0.00024304,41847.0,41845.0,0.059758]
[1641710112102,0.00524304,41847.0,41845.0,0.075758]
[1641710112944,0.00524304,41847.0,41845.0,0.125758]
[1641710113143,0.00524304,41847.0,41846.0,0.385209]
[1641710113346,0.00024304,41847.0,41846.0,0.385209]
[1641710113747,0.00024304,41847.0,41846.0,0.84951914]
[1641710113946,0.00024304,41847.0,41846.0,0.86851914]
[1641710114949,0.00031001,41848.0,41846.0,0.8697603]
[1641710115145,0.00031001,41848.0,41847.0,0.385209]
[1641710115545,0.00031001,41848.0,41847.0,0.485209]
[1641710115746,0.00881093,41849.0,41847.0,0.485209]
[1641710115946,0.00881093,41849.0,41848.0,0.4429027]
[1641710116146,0.00881093,41849.0,41848.0,0.9281117]
[1641710116347,0.00881093,41849.0,41848.0,0.9878517]
[1641710118102,0.00881093,41849.0,41848.0,0.466949]
[1641710118504,0.00881093,41849.0,41848.0,0.566949]
[1641710118905,0.00881093,41849.0,41848.0,0.92290762]
[1641710119305,0.00881093,41849.0,41848.0,0.90090762]
[1641710119505,0.00881093,41849.0,41848.0,1.31383013]
[1641710120208,0.00881093,41849.0,41848.0,1.33683013]
[1641710121344,0.00881093,41849.0,41848.0,1.31383013]
[1641710122045,0.00881093,41849.0,41848.0,1.33583013]
[1641710123250,0.00881093,41849.0,41848.0,1.31383013]
[1641710124198,0.00881093,41849.0,41848.0,1.33883013]
[1641710125398,0.00881093,41849.0,41848.0,1.31383013]